bitfinex/quotes_ETHUSD_20250929
["timestamp","ask_amount","ask_price","bid_price","bid_amount"]
[1759110412773,10.78173133,4132.4,4132.3,0.002]
[1759110413203,11.16136415,4132.4,4132.3,0.002]
[1759110413579,34.20387215,4132.4,4132.3,0.002]
[1759110413781,32.14287415,4132.4,4132.3,0.002]
[1759110414000,26.70523215,4132.4,4132.3,0.002]
[1759110414221,23.91204915,4132.4,4132.3,0.002]
[1759110414680,25.30750315,4132.4,4132.3,0.002]
[1759110415078,15.98250115,4132.4,4132.3,0.002]
[1759110415772,16.75750115,4132.4,4132.3,0.002]
[1759110415973,15.26750115,4132.4,4132.3,0.002]
[1759110416188,14.98250115,4132.4,4132.3,0.002]
[1759110417418,17.96099015,4132.4,4132.3,0.002]
[1759110418287,11.16136415,4132.4,4132.3,0.002]
[1759110418482,14.98099015,4132.4,4132.3,0.002]
[1759110418822,13.02900115,4132.4,4132.3,0.002]
[1759110419018,13.49250115,4132.4,4132.3,0.002]
[1759110419317,33.82423933,4132.4,4132.3,0.002]
[1759110420520,35.27923933,4132.4,4132.3,0.002]
[1759110420906,6.21201839,4132.2,4132.1,0.002]
[1759110421084,29.16238639,4132.2,4132.1,0.002]
[1759110421283,29.93840939,4132.2,4132.1,0.002]
[1759110421715,16.75457939,4132.2,4132.1,0.002]
[1759110421918,16.29107939,4132.2,4132.1,0.002]
[1759110422120,7.93818064,4132.2,4132.1,0.4302]
[1759110422327,8.45501839,4132.2,4132.1,0.2437]
[1759110422505,8.8346548,4132.2,4132.1,0.2437]
[1759110422697,8.8346548,4132.2,4132.1,0.002]
[1759110423220,14.36819053,4132.2,4132.1,0.002]
[1759110426639,14.59559053,4132.2,4132.1,0.002]
[1759110426843,16.60521577,4132.2,4132.1,0.002]
[1759110427009,36.91557077,4132.2,4132.1,0.002]
[1759110427343,38.37057077,4132.2,4132.1,0.002]
[1759110427710,37.28417877,4132.2,4132.1,0.002]
[1759110427910,19.31571577,4132.2,4132.1,0.002]
[1759110428111,35.24946777,4132.2,4132.1,0.002]
[1759110428624,23.89975977,4132.2,4132.1,0.002]
[1759110429146,34.32934277,4132.2,4132.1,0.002]
[1759110429448,26.65682377,4132.2,4132.1,0.002]
[1759110430040,33.20514277,4132.2,4132.1,0.002]
[1759110430744,19.31571577,4132.2,4132.1,0.002]
[1759110430907,21.63931777,4132.2,4132.1,0.002]
[1759110431225,21.49638136,4132.2,4132.1,0.002]
[1759110431427,41.98788736,4132.2,4132.1,0.002]
[1759110432050,44.07638736,4132.2,4132.1,0.002]
[1759110432220,44.53968736,4132.2,4132.1,0.002]
[1759110433142,7.21913552,4132.0,4131.9,1e-08]
[1759110433438,36.29464352,4132.0,4131.9,1e-08]
[1759110433643,36.99464352,4132.0,4131.9,1e-08]
[1759110433856,37.09175435,4132.0,4131.9,1e-08]
[1759110434153,7.66731125,4131.7,4131.6,1e-08]
[1759110434362,39.27635498,4131.7,4131.6,1e-08]
[1759110434646,39.97635498,4131.7,4131.6,1e-08]
[1759110435647,36.87536298,4131.7,4131.6,1e-08]
[1759110436348,16.93384698,4131.7,4131.6,1e-08]
[1759110436652,23.15894543,4131.7,4131.6,1e-08]
[1759110437027,23.39564543,4131.7,4131.6,1e-08]
[1759110437427,41.95634243,4131.7,4131.6,1e-08]
[1759110437925,41.71964243,4131.7,4131.6,1e-08]
[1759110438125,41.24574843,4131.7,4131.6,1e-08]
[1759110438311,37.10697543,4131.7,4131.6,1e-08]
[1759110438515,33.86162143,4131.7,4131.6,1e-08]
[1759110438831,30.82862143,4131.7,4131.6,1e-08]
[1759110439032,24.68205143,4131.7,4131.6,1e-08]
[1759110439457,18.67713443,4131.7,4131.6,1e-08]
[1759110439663,38.12706143,4131.7,4131.6,1e-08]
[1759110440552,37.22606143,4131.7,4131.6,1e-08]
[1759110441559,32.52933643,4131.7,4131.6,1e-08]
[1759110441759,30.54233643,4131.7,4131.6,1e-08]
[1759110442428,41.71964243,4131.7,4131.6,1e-08]
[1759110443261,24.68624243,4131.7,4131.6,1e-08]
[1759110443564,26.22767543,4131.7,4131.6,0.24390001]
[1759110443854,26.22767543,4131.7,4131.6,1e-08]
[1759110444054,26.60739698,4131.7,4131.6,1e-08]
[1759110444463,36.05549798,4131.7,4131.6,1e-08]
[1759110444665,22.05908798,4131.7,4131.6,1e-08]
[1759110445046,16.02385598,4131.7,4131.6,0.24390001]
[1759110445238,19.05685598,4131.7,4131.6,0.68910001]
[1759110445445,21.53285598,4131.7,4131.6,0.68910001]
[1759110446448,21.15313443,4131.7,4131.6,1e-08]
[1759110446791,41.71964243,4131.7,4131.6,1e-08]
[1759110447674,41.95634243,4131.7,4131.6,1e-08]
[1759110447852,41.71964243,4131.7,4131.6,1e-08]
[1759110448059,21.66713443,4131.7,4131.6,0.68910001]
[1759110448467,21.66713443,4131.7,4131.6,0.24390001]
[1759110448661,21.66713443,4131.7,4131.6,1e-08]
[1759110449299,22.04684497,4131.7,4131.6,1e-08]
[1759110449452,42.09935297,4131.7,4131.6,1e-08]
[1759110449647,42.79935297,4131.7,4131.6,1e-08]
[1759110449969,42.33605297,4131.7,4131.6,1e-08]
[1759110450557,41.95634243,4131.7,4131.6,1e-08]
[1759110450766,42.41964243,4131.7,4131.6,1e-08]
[1759110450945,41.95634243,4131.7,4131.6,1e-08]
[1759110451567,38.68664243,4131.7,4131.6,1e-08]
[1759110451748,41.71964243,4131.7,4131.6,1e-08]
[1759110453787,42.09936794,4131.7,4131.6,1e-08]
[1759110454358,41.35051322,4131.7,4131.6,1e-08]
[1759110454794,42.05051322,4131.7,4131.6,1e-08]
[1759110455097,41.58721322,4131.7,4131.6,1e-08]
[1759110455303,42.05051322,4131.7,4131.6,1e-08]
[1759110455655,41.58721322,4131.7,4131.6,1e-08]
[1759110455859,41.35051322,4131.7,4131.6,1e-08]
[1759110456891,38.31751322,4131.7,4131.6,1e-08]
[1759110457095,7.25503676,4131.7,4131.6,0.68910001]
[1759110457396,0.37972551,4131.7,4131.6,0.68910001]
[1759110457562,6.41272551,4131.7,4131.6,0.68910001]
[1759110458366,8.83303676,4131.7,4131.6,0.68910001]
[1759110458778,6.41272551,4131.7,4131.6,0.68910001]
[1759110459367,6.41372551,4131.7,4131.6,0.68910001]
[1759110459563,8.45431125,4131.7,4131.6,0.68910001]
[1759110460674,6.034,4131.7,4131.6,0.68910001]
[1759110461075,0.001,4131.7,4131.6,3.10946984]
[1759110461387,0.001,4131.7,4131.6,3.23026984]
[1759110461589,0.001,4132.2,4132.1,2.42007695]
[1759110461767,0.09711083,4132.3,4132.2,2.42000589]
[1759110461967,0.09711083,4132.3,4132.2,3.12700589]
[1759110464176,0.09711083,4132.3,4132.2,0.707]
[1759110464765,0.09711083,4132.3,4132.2,3.12701839]
[1759110464965,0.09711083,4132.3,4132.2,0.707]
[1759110465198,0.09711083,4132.3,4131.6,1e-08]
[1759110465404,3.0,4132.2,4131.9,0.2491]
[1759110465605,3.0,4132.0,4131.6,1e-08]
[1759110465808,2.42019919,4131.9,4131.6,1e-08]
[1759110466168,5.42015016,4132.0,4131.7,0.707]
[1759110466403,5.42015016,4132.0,4131.6,1e-08]
[1759110466606,3.0,4132.0,4131.8,0.707]
[1759110466789,5.42017893,4132.0,4131.9,0.2491]
[1759110467576,5.42017893,4132.0,4131.6,0.24910001]
[1759110467577,2.42019409,4131.9,4131.6,0.24910001]
[1759110467771,3.0,4132.1,4131.7,0.707]
[1759110468080,3.0,4132.1,4131.8,0.707]
[1759110468081,3.032,4132.0,4131.8,0.707]
[1759110468281,3.032,4132.0,4131.9,0.707]
[1759110468874,5.45214437,4132.0,4131.6,1e-08]
[1759110469196,10.20499226,4131.7,4131.6,1e-08]
[1759110469407,14.69199226,4131.7,4131.6,1e-08]
[1759110471101,5.42031125,4131.7,4131.6,0.70700001]
[1759110471295,8.45231125,4131.7,4131.6,0.70700001]
[1759110471503,6.032,4131.7,4131.6,0.70700001]
[1759110471701,6.032,4131.7,4131.6,0.24910001]
[1759110472015,6.032,4131.7,4131.6,0.70700001]
[1759110473721,17.39629171,4131.7,4131.6,1e-08]
[1759110473902,36.27916571,4131.7,4131.6,1e-08]
[1759110474219,30.65884271,4131.7,4131.6,1e-08]
[1759110474821,40.67476571,4131.7,4131.6,1e-08]
[1759110474992,45.45944672,4131.7,4131.6,1e-08]
[1759110475394,45.71717956,4131.7,4131.6,1e-08]
[1759110475923,45.94771356,4131.7,4131.6,1e-08]
[1759110476329,51.23771113,4131.7,4131.6,1e-08]
[1759110476658,42.92123629,4131.7,4131.6,1e-08]
[1759110476852,27.93747029,4131.7,4131.6,1e-08]
[1759110477062,47.79952329,4131.7,4131.6,1e-08]
[1759110477240,47.42733529,4131.7,4131.6,1e-08]
[1759110477841,3.21260418,4131.2,4131.1,0.002]
[1759110478156,32.50665477,4131.2,4131.1,0.002]
[1759110478448,35.15412477,4131.2,4131.1,0.002]
[1759110478654,35.5339006,4131.2,4131.1,0.002]
[1759110479066,24.40493577,4131.2,4131.1,0.002]
[1759110479221,24.87143577,4131.2,4131.1,0.002]
[1759110479424,25.17567681,4131.2,4131.1,0.002]
[1759110480023,35.45836581,4131.2,4131.1,0.002]
[1759110480950,12.41585781,4131.2,4131.1,0.002]
[1759110481110,35.45836581,4131.2,4131.1,0.002]
[1759110482552,33.64112681,4131.2,4131.1,0.002]
[1759110482777,33.33788577,4131.2,4131.1,0.002]
[1759110483048,34.68862477,4131.2,4131.1,0.002]
[1759110483543,35.06841375,4131.2,4131.1,0.002]
[1759110484947,35.53491375,4131.2,4131.1,0.002]
[1759110485148,37.62041375,4131.2,4131.1,0.002]
[1759110486962,37.62041375,4131.2,4130.7,0.002]
[1759110486963,4.66777997,4130.9,4130.7,0.002]
[1759110487176,44.75248281,4130.9,4130.7,0.002]
[1759110488100,51.12080981,4130.9,4130.7,0.002]
[1759110488257,48.08780981,4130.9,4130.7,0.002]
[1759110488577,2.247,4130.7,4129.8,0.4579]
[1759110488777,14.85935959,4130.2,4129.9,0.2367]
[1759110488954,5.4213075,4130.0,4129.9,0.2367]
[1759110489468,5.4213075,4130.0,4129.9,0.6808]
[1759110489856,6.1498156,4130.0,4129.9,0.6808]
[1759110495467,3.0,4129.9,4127.3,0.792]
[1759110495663,2.42160067,4129.5,4129.4,0.4584]
[1759110495988,8.45460067,4129.5,4129.4,0.4584]
[1759110496162,9.18316539,4129.5,4129.4,0.4584]
[1759110496359,13.97163488,4129.5,4129.4,0.6836]
[1759110496587,13.97163488,4129.5,4129.4,0.2252]
[1759110496791,13.97163488,4129.5,4129.4,0.2272]
[1759110496991,13.97163488,4129.5,4129.4,0.6856]
[1759110497600,14.09064388,4129.5,4129.4,0.6856]
[1759110499199,11.05764388,4129.5,4129.4,0.6856]
[1759110499407,14.09064388,4129.5,4129.4,0.6856]
[1759110500011,3.72856472,4129.5,4129.4,0.6856]
[1759110500418,6.76156472,4129.5,4129.4,0.6856]
[1759110504590,3.0,4129.5,4129.4,0.6856]
[1759110505014,3.0,4129.5,4129.4,3.10725932]
[1759110505390,3.0,4129.5,4129.4,3.22805932]
[1759110505907,3.0,4129.5,4129.4,0.8064]
[1759110507505,3.0,4129.5,4129.4,3.22805932]
[1759110508108,3.0,4129.5,4129.4,0.002]
[1759110508339,3.0,4129.5,4129.4,0.6856]
[1759110508536,3.72855941,4129.5,4129.4,0.6856]
[1759110508836,3.0,4129.5,4129.4,0.6856]
[1759110509530,3.0,4129.5,4129.4,3.10725932]
[1759110513634,3.0,4129.5,4129.4,3.00725932]
[1759110513932,3.0,4129.5,4129.4,2.88005932]
[1759110515617,3.0,4129.5,4129.4,3.10525932]
[1759110518248,3.0,4129.5,4129.4,3.22605932]
[1759110520443,3.0,4129.5,4129.4,3.25027591]
[1759110520743,2.85829999,4130.6,4129.4,3.25027591]
[1759110520744,0.38081495,4130.7,4130.2,2.42114931]
[1759110520946,0.1218,4130.7,4130.3,0.6742]
[1759110521146,3.1218,4130.7,4130.4,0.6742]
[1759110521381,0.1218,4130.7,4130.4,0.2433]
[1759110521650,3.1218,4130.7,4130.3,2.42111265]
[1759110521867,3.1218,4130.7,4130.2,2.54198897]
[1759110522032,0.2288,4130.6,4130.2,3.21618897]
[1759110522227,0.2288,4130.5,4130.2,0.1208]
[1759110522552,0.2288,4130.6,4130.2,0.1208]
[1759110523045,0.2288,4130.6,4130.5,2.4210144]
[1759110523254,0.2288,4130.6,4130.5,2.6643144]
[1759110523752,0.2288,4130.6,4130.5,3.0952144]
[1759110524461,0.001,4130.7,4130.6,2.42095579]
[1759110524752,0.001,4130.7,4130.6,3.21595579]
[1759110525317,0.001,4130.7,4130.6,2.54175579]
[1759110525845,0.001,4130.7,4130.6,0.1208]
[1759110526721,0.001,4130.7,4129.3,0.002]
[1759110526722,0.2298,4130.7,4130.0,3.0954641]
[1759110526921,0.001,4130.7,4130.0,0.4309]
[1759110527160,0.001,4130.7,4130.4,2.42103753]
[1759110528128,0.001,4130.7,4130.5,2.42101119]
[1759110529421,0.001,4130.7,4130.0,2.85218169]
[1759110529624,0.001,4130.7,4130.1,0.2433]
[1759110529851,0.67067,4130.7,4130.1,2.42120877]
[1759110530259,0.2288,4130.6,4130.1,2.42120877]
[1759110530649,0.2288,4130.6,4130.2,2.42118748]
[1759110530866,0.2288,4130.6,4129.9,2.42136613]
[1759110530867,0.2288,4130.6,4130.1,2.42124416]
[1759110531452,0.67067,4130.7,4130.1,2.42124416]
[1759110531623,1.24977871,4130.6,4130.1,2.42124698]
[1759110531820,0.89947,4130.5,4130.1,2.42124698]
[1759110532253,0.67067,4130.5,4130.1,2.42124698]
[1759110534350,0.67067,4130.5,4129.9,2.42136364]
[1759110534351,0.89947,4130.5,4130.0,2.42129008]
[1759110534558,3.89947,4130.5,4129.9,2.66466103]
[1759110534759,5.00937357,4130.5,4130.0,2.42130474]
[1759110534966,4.78057357,4130.5,4130.0,2.42130474]
[1759110535260,0.2288,4130.4,4130.0,2.42130474]
[1759110535560,0.2288,4130.4,4129.9,0.2433]
[1759110535939,7.25925607,4130.5,4129.8,2.42140941]
[1759110536260,0.2288,4130.4,4129.8,2.42140941]
[1759110536635,0.6661,4130.3,4129.7,0.1208]
[1759110537032,3.0,4130.2,4129.7,0.1208]
[1759110537234,3.95719136,4130.2,4129.7,0.1208]
[1759110537547,3.2288,4130.2,4129.7,0.1208]
[1759110537746,0.2288,4130.1,4129.7,0.1208]
[1759110537951,0.95719136,4130.1,4129.7,2.54227795]
[1759110538169,0.72839136,4130.1,4129.7,2.54227795]
[1759110538359,0.72839136,4130.1,4129.7,0.3641]
[1759110539135,0.72839136,4130.1,4129.7,2.78557536]
[1759110540181,0.72839136,4130.1,4129.7,2.97316563]
[1759110540465,0.72839136,4130.1,4129.8,0.2433]
[1759110541136,0.72839136,4130.1,4129.7,0.1208]
[1759110541333,0.56735726,4130.1,4129.7,0.1208]
[1759110541538,0.79615726,4130.1,4129.7,0.1208]
[1759110541740,1.52454862,4130.1,4129.7,0.1208]
[1759110543667,1.52454862,4130.1,4129.7,2.78557676]
[1759110543848,0.72839136,4130.1,4129.7,0.3641]
[1759110544654,0.95719136,4130.1,4129.7,0.1208]
[1759110545578,0.95719136,4130.1,4129.7,0.3641]
[1759110545760,0.72839136,4130.1,4129.7,2.78556792]
[1759110546084,0.72839136,4130.1,4129.7,3.21646792]
[1759110546285,0.72839136,4130.1,4129.7,0.795]
[1759110546989,0.72839136,4130.1,4129.7,0.1208]
[1759110547189,3.6661,4130.0,4129.3,0.002]
[1759110547389,2.54223321,4129.8,4129.3,0.002]
[1759110547594,3.0,4129.7,4129.3,0.002]
[1759110547766,2.65028526,4129.7,4129.3,0.002]
[1759110548196,3.0,4129.5,4129.3,0.002]
[1759110549381,0.2453,4129.6,4129.3,0.002]
[1759110549981,0.2453,4129.6,4129.4,0.702]
[1759110550195,2.42126417,4130.1,4129.3,2.42367641]
[1759110550196,0.001,4130.7,4129.5,0.726216]
[1759110550400,0.72835599,4130.2,4129.7,0.1208]
[1759110550706,0.1208,4130.4,4129.8,0.702]
[1759110550993,0.72835599,4130.3,4129.7,0.1208]
[1759110551211,0.2494,4130.2,4129.3,0.002]
[1759110551369,0.1208,4130.1,4129.4,0.1208]
[1759110551570,2.42140677,4129.9,4129.4,0.1208]
[1759110551885,3.0,4129.7,4129.3,0.002]
[1759110552080,5.42149847,4129.7,4129.3,0.002]
[1759110552285,3.0,4129.5,4129.3,0.002]
[1759110552999,5.42161568,4129.5,4129.3,0.002]
[1759110553295,3.2457,4129.5,4129.3,0.002]
[1759110553493,11.65272627,4129.4,4129.3,0.002]
[1759110555563,11.19352627,4129.4,4129.3,0.002]
[1759110555968,11.65272627,4129.4,4129.3,0.002]
[1759110556201,9.23106695,4129.4,4129.3,0.002]
[1759110556499,3.0,4129.4,4129.3,0.2502]
[1759110556693,3.0,4129.4,4129.3,0.7187]
[1759110557204,3.0,4129.4,4129.3,0.2502]
[1759110558004,3.0,4129.4,4129.3,0.002]
[1759110558493,7.70810652,4129.4,4129.3,0.002]
[1759110558695,10.12976584,4129.4,4129.3,0.002]
[1759110559005,7.70810652,4129.4,4129.3,0.002]
[1759110559324,3.0,4129.4,4129.3,0.002]
[1759110559485,3.0,4129.4,4129.3,0.7187]
[1759110559811,3.0,4129.4,4129.3,3.14041796]
[1759110560302,3.0,4129.4,4129.3,0.7187]
[1759110560506,3.0,4129.4,4129.3,3.14041796]
[1759110560684,3.0,4129.4,4129.3,0.7187]
[1759110561073,3.0,4129.4,4129.3,3.14041796]
[1759110568580,3.0,4129.4,4129.3,3.26121796]
[1759110569411,0.72839843,4130.1,4130.0,2.4213075]
[1759110569714,0.1208,4130.6,4129.5,3.037]
[1759110569922,0.84910471,4130.6,4130.1,0.1208]
[1759110570211,0.001,4130.7,4130.4,2.54184974]
[1759110570713,0.001,4130.7,4130.5,0.7167]
[1759110570915,0.001,4130.7,4130.6,2.54175579]
[1759110571088,0.001,4130.7,4130.6,3.25845579]
[1759110571681,0.001,4130.7,4130.6,2.54175579]
[1759110572596,0.2348,4130.7,4130.6,0.1208]
[1759110573591,0.001,4130.7,4130.6,0.1208]
[1759110574315,7.78571631,4130.7,4130.6,2.54175579]
[1759110574523,7.78571631,4130.7,4130.6,0.1208]
[1759110577691,7.78571631,4130.7,4130.2,3.2872]
[1759110577888,7.78571631,4130.7,4130.4,0.1208]
[1759110578205,7.78571631,4130.7,4130.5,0.2482]
[1759110578413,3.001,4130.7,4130.6,3.16186534]
[1759110578612,3.001,4130.7,4130.6,3.13765579]
[1759110578805,3.001,4130.7,4130.6,3.25845579]
[1759110579800,3.001,4130.7,4130.6,0.8375]
[1759110580002,3.001,4130.7,4130.6,3.25845579]
[1759110580198,3.001,4130.7,4130.1,0.2406]
[1759110580507,4.78471631,4130.6,4130.4,2.42102113]
[1759110580710,4.78471631,4130.6,4130.5,2.4210144]
[1759110583846,3.001,4130.7,4130.6,2.42095579]
[1759110584041,3.001,4130.7,4130.2,2.42118441]
[1759110584239,3.0,4130.2,4129.8,2.42138275]
[1759110584412,7.78471631,4130.0,4129.9,3.038]
[1759110584611,5.01981631,4130.0,4129.3,2.66430677]
[1759110584812,4.78471631,4129.7,4129.4,3.039]
[1759110585042,4.78471631,4129.7,4129.3,2.42370309]
[1759110585043,3.0,4129.6,4129.3,0.002]
[1759110585342,4.78471631,4129.4,4129.3,0.002]
[1759110586144,5.01981631,4129.4,4129.3,0.002]
[1759110586447,4.78471631,4129.4,4129.3,0.002]
[1759110586753,7.78471631,4129.4,4129.3,0.002]
[1759110588233,3.0,4129.4,4129.3,3.11451796]
[1759110589813,3.0,4129.4,4129.3,0.002]
[1759110590011,3.2351,4129.4,4129.3,0.002]
[1759110590223,3.2351,4129.4,4129.3,2.42371796]
[1759110590430,3.0,4129.4,4129.3,2.42371796]
[1759110590821,3.0,4129.4,4129.3,0.002]
[1759110591418,3.0,4129.4,4129.3,2.42371796]
[1759110594720,3.0,4129.4,4129.3,0.002]
[1759110594921,6.96967875,4129.4,4129.3,0.002]
[1759110595146,4.54801943,4129.4,4129.3,0.002]
[1759110595917,7.01611943,4129.4,4129.3,0.002]
[1759110596151,3.0,4129.4,4129.3,3.11451796]
[1759110596351,3.0,4129.4,4129.3,2.66431796]
[1759110596723,3.0,4129.4,4129.3,2.42371796]
[1759110596918,3.0,4129.4,4129.3,0.002]
[1759110597187,4.53104465,4129.4,4129.3,0.002]
[1759110597491,8.01981631,4129.4,4129.3,0.002]
[1759110597865,3.0,4129.4,4129.3,0.002]
[1759110598072,3.0,4129.4,4129.3,3.11451796]
[1759110598387,3.0,4129.4,4129.3,0.1228]
[1759110598559,3.0,4129.4,4129.3,2.54451796]
[1759110599259,3.0,4129.4,4129.3,2.78511796]
[1759110599679,3.0,4129.4,4129.3,0.1228]
[1759110600082,3.001,4129.4,4129.3,0.1228]
[1759110600256,3.001,4129.4,4129.3,2.54451796]
[1759110600872,3.001,4129.4,4129.3,3.13873513]
[1759110601058,3.001,4129.4,4129.3,3.25953513]
[1759110601263,3.001,4129.4,4129.3,3.23531796]
[1759110603794,3.001,4129.4,4129.3,2.54451796]
[1759110604014,3.2361,4129.4,4129.3,0.002]
[1759110604217,4.06747,4129.4,4129.3,0.002]
[1759110604576,3.6977,4129.4,4129.3,0.002]
[1759110604768,3.2361,4129.4,4129.3,2.42371796]
[1759110604967,3.001,4129.4,4129.3,0.002]
[1759110606067,3.001,4129.4,4129.3,2.66431796]
[1759110606285,3.001,4129.4,4129.3,2.42371796]
[1759110607704,3.001,4129.4,4129.3,2.66431796]
[1759110607910,3.001,4129.4,4129.3,3.11451796]
[1759110608204,3.001,4129.4,4129.3,3.23531796]
[1759110611105,3.001,4129.4,4129.3,3.25953513]
[1759110611407,3.001,4129.4,4129.3,3.23531796]
[1759110612213,3.001,4129.4,4129.3,0.1228]
[1759110612420,3.001,4129.4,4129.3,5.58951796]
[1759110613719,3.001,4129.4,4129.3,6.30121796]
[1759110614300,3.001,4129.4,4129.3,5.82691796]
[1759110614801,3.001,4129.4,4129.3,5.58951796]
[1759110615124,3.001,4129.4,4129.3,6.30121796]
[1759110615325,0.001,4129.4,4129.3,6.30121796]
[1759110621517,0.001,4129.4,4129.3,7.09321796]
[1759110627058,0.001,4129.4,4129.3,4.04821796]
[1759110627289,0.001,4129.4,4129.3,2.54451796]
[1759110627436,0.001,4129.4,4129.3,5.58651796]
[1759110628163,0.001,4129.4,4129.3,5.82391796]
[1759110629159,0.001,4129.4,4129.3,5.58651796]
[1759110629747,0.001,4129.4,4129.3,5.82391796]
[1759110630045,0.001,4129.4,4129.3,6.29821796]
[1759110632771,0.001,4129.4,4129.3,5.58651796]
[1759110633451,0.001,4129.4,4129.3,5.82391796]
[1759110633647,0.001,4129.4,4129.3,6.29821796]
[1759110634745,0.001,4129.4,4129.3,5.82391796]
[1759110634943,0.001,4129.4,4129.3,5.58651796]
[1759110635360,0.001,4129.4,4129.3,5.82391796]
[1759110635677,0.001,4129.4,4129.3,6.29821796]
[1759110636827,0.001,4129.4,4129.3,5.58651796]
[1759110638454,0.001,4129.4,4129.3,6.29821796]
[1759110639270,0.001,4129.4,4129.3,5.58651796]
[1759110639663,0.6883,4129.4,4129.3,5.46371796]
[1759110643596,0.6883,4129.4,4129.3,0.002]
[1759110643802,1.33433379,4129.4,4129.3,0.002]
[1759110645188,1.33433379,4129.4,4129.3,2.42371796]
[1759110645364,1.33433379,4129.4,4129.3,0.002]
[1759110645570,1.33433379,4129.4,4129.3,2.42371796]
[1759110645989,1.33433379,4129.4,4129.3,0.002]
[1759110646195,1.33433379,4129.4,4129.3,2.42371796]
[1759110646389,1.33433379,4129.4,4129.3,0.002]
[1759110646961,4.33433379,4129.4,4129.3,0.002]
[1759110647997,4.33433379,4129.4,4129.3,2.42371796]
[1759110648790,4.33433379,4129.4,4129.3,0.002]
[1759110653404,3.88213379,4129.4,4129.3,0.002]
[1759110654311,4.33433379,4129.4,4129.3,0.002]
[1759110659005,3.88213379,4129.4,4129.3,0.002]
[1759110659804,3.64703379,4129.4,4129.3,2.42371796]
[1759110660687,3.64703379,4129.4,4129.3,0.002]
[1759110661682,3.001,4129.4,4129.3,2.42371796]
[1759110661914,3.6883,4129.4,4129.3,0.002]
[1759110662717,9.14595932,4129.4,4129.3,0.002]
[1759110662882,9.26675932,4129.4,4129.3,0.002]
[1759110663482,6.8451,4129.4,4129.3,0.002]
[1759110663724,8.49446576,4129.4,4129.3,0.002]
[1759110663882,10.91612508,4129.4,4129.3,0.002]
[1759110666512,4.77116576,4129.4,4129.3,0.002]
[1759110666815,3.001,4129.4,4129.3,0.6723]
[1759110667021,6.2721,4129.4,4129.3,0.002]
[1759110667215,6.7243,4129.4,4129.3,0.002]
[1759110667991,9.14595932,4129.4,4129.3,0.002]
[1759110668299,10.89199511,4129.4,4129.3,0.002]
[1759110669917,2.42183526,4129.1,4129.0,0.002]
[1759110670088,2.42183526,4129.1,4128.1,0.1208]
[1759110670089,5.42200601,4128.9,4128.1,0.1208]
[1759110670289,5.53693791,4128.2,4128.1,0.1208]
[1759110670718,5.53693791,4128.2,4128.1,0.8294]
[1759110672040,8.53693791,4128.2,4128.1,0.8294]
[1759110672377,8.53693791,4128.2,4128.1,0.1208]
[1759110673802,8.53693791,4128.2,4128.1,0.1228]
[1759110674312,8.77923791,4128.2,4128.1,0.1228]
[1759110675534,8.53693791,4128.2,4128.1,0.1228]
[1759110676237,11.57293791,4128.2,4128.1,0.002]
[1759110677239,0.12006269,4128.5,4128.1,0.002]
[1759110677240,5.53693791,4128.9,4128.1,0.7969]
[1759110677438,3.037,4128.8,4128.5,2.42215997]
[1759110677609,3.0,4128.7,4128.4,0.1208]
[1759110677805,8.53693791,4128.5,4128.1,0.002]
[1759110678147,8.53693791,4128.5,4128.1,2.42441087]
[1759110678354,8.53693791,4128.5,4128.1,0.002]
[1759110678557,3.0,4128.3,4128.1,0.002]
[1759110678931,3.2423,4128.3,4128.1,0.002]
[1759110679321,3.97100275,4128.3,4128.1,0.002]
[1759110679644,3.44421595,4128.2,4128.1,0.002]
[1759110679952,3.0,4128.2,4128.1,2.42442193]
[1759110680155,0.72870275,4128.3,4128.2,2.42236325]
[1759110680321,0.72870275,4128.3,4128.2,3.09646325]
[1759110681663,5.53693791,4128.5,4128.1,0.002]
[1759110681664,3.0,4128.4,4128.1,0.002]
[1759110681852,1.88638415,4128.3,4128.1,0.002]
[1759110682023,0.72869036,4128.3,4128.1,2.42442087]
[1759110682224,0.72869036,4128.3,4128.2,2.42236325]
[1759110682428,0.72869036,4128.3,4128.2,3.09646325]
[1759110683119,0.72869036,4128.3,4128.1,0.002]
[1759110683323,0.72869036,4128.3,4128.1,2.65837947]
[1759110683552,0.72869036,4128.3,4128.1,0.002]
[1759110684468,1.98358319,4128.3,4128.1,0.002]
[1759110685042,0.72869036,4128.3,4128.1,2.42436547]
[1759110685368,0.72869036,4128.3,4128.1,0.6761]
[1759110685973,2.18369036,4128.3,4128.1,3.09850947]
[1759110686286,0.72869036,4128.3,4128.1,0.6761]
[1759110686946,0.72869036,4128.3,4128.2,3.12068688]
[1759110687136,0.72869036,4128.3,4128.2,3.09646325]
[1759110687571,3.0,4129.0,4128.2,3.09646325]
[1759110687748,3.0,4129.0,4128.3,0.6741]
[1759110687951,0.72854702,4128.9,4128.8,2.42201059]
[1759110688844,0.72854702,4128.9,4128.8,3.09611059]
[1759110689586,0.72854702,4128.9,4128.7,0.1208]
[1759110689587,0.72854702,4128.9,4128.7,2.54286086]
[1759110689938,0.72854702,4128.9,4128.7,0.1208]
[1759110690559,0.72854702,4128.9,4128.3,3.041]
[1759110690870,5.53693791,4128.7,4128.6,2.42212856]
[1759110691500,5.53693791,4128.7,4128.5,0.1208]
[1759110692062,5.53693791,4128.7,4128.6,2.42212856]
[1759110692362,5.53693791,4128.7,4128.5,2.5429602]
[1759110692563,5.53693791,4128.7,4128.6,2.42212856]
[1759110694066,0.72958418,4128.8,4128.7,2.4220699]
[1759110694267,0.72958418,4128.8,4128.7,3.0961699]
[1759110694595,0.72958418,4128.8,4128.7,3.2169699]
[1759110696301,8.51800869,4128.8,4128.7,3.2169699]
[1759110696807,0.001,4128.8,4128.7,3.2169699]